[Event "FIDE U16 Olympiad_boards_1-80"]
[Site "Eindhoven, Netherlands"]
[Date "2023.08.14"]
[Round "3.65"]
[White "Song, Ethan"]
[Black "Grgantov, Marin"]
[Result "1-0"]
[TimeControl "2700+10"]
[WhiteElo "2025"]
[BlackElo "2192"]

1. e4 {[%clk 00:45:17]} {[%emt 00:00:02]} e5 {[%clk 00:45:17]} {[%emt
00:00:03]} 2. Nf3 {[%clk 00:45:25]} {[%emt 00:00:02]} Nc6 {[%clk 00:45:25]}
{[%emt 00:00:03]} 3. Bb5 {[%clk 00:45:28]} {[%emt 00:00:07]} a6 {[%clk
00:45:30]} {[%emt 00:00:05]} 4. Ba4 {[%clk 00:45:37]} Nf6 {[%clk 00:45:28]}
{[%emt 00:00:12]} 5. d3 {[%clk 00:45:45]} {[%emt 00:00:02]} b5 {[%clk
00:45:06]} {[%emt 00:00:31]} 6. Bb3 {[%clk 00:45:53]} {[%emt 00:00:02]} Bd6
{[%clk 00:45:09]} {[%emt 00:00:07]} 7. a4 {[%clk 00:46:01]} {[%emt 00:00:02]}
Bb7 {[%clk 00:44:12]} {[%emt 00:01:08]} 8. O-O {[%clk 00:45:56]} {[%emt
00:00:14]} O-O {[%clk 00:43:35]} {[%emt 00:00:48]} 9. c3 {[%clk 00:45:35]}
{[%emt 00:00:30]} h6 {[%clk 00:42:20]} {[%emt 00:01:25]} 10. Nh4 {[%clk
00:44:00]} {[%emt 00:01:46]} Re8 {[%clk 00:39:15]} {[%emt 00:03:15]} 11. Nf5
{[%clk 00:43:33]} {[%emt 00:00:36]} Bf8 {[%clk 00:38:59]} {[%emt 00:00:27]} 12.
Qf3 {[%clk 00:41:19]} {[%emt 00:02:23]} Na5 {[%clk 00:37:14]} {[%emt 00:01:55]}
13. Bc2 {[%clk 00:41:04]} {[%emt 00:00:26]} d5 {[%clk 00:36:21]} {[%emt
00:01:03]} 14. b4 {[%clk 00:40:09]} {[%emt 00:01:05]} dxe4 {[%clk 00:34:08]}
{[%emt 00:02:24]} 15. Qg3 {[%clk 00:38:38]} {[%emt 00:01:40]} Qd7 {[%clk
00:29:27]} {[%emt 00:04:51]} 16. Nxh6+ {[%clk 00:35:54]} {[%emt 00:02:54]} Kh7
{[%clk 00:29:22]} {[%emt 00:00:14]} 17. Nxf7 {[%clk 00:33:16]} {[%emt
00:02:48]} Qxf7 {[%clk 00:29:31]} {[%emt 00:00:02]} 18. bxa5 {[%clk 00:33:23]}
{[%emt 00:00:04]} exd3 {[%clk 00:28:50]} {[%emt 00:00:50]} 19. Bxd3+ {[%clk
00:32:26]} {[%emt 00:01:07]} e4 {[%clk 00:28:35]} {[%emt 00:00:25]} 20. Be2
{[%clk 00:31:33]} {[%emt 00:01:03]} b4 {[%clk 00:27:45]} {[%emt 00:01:00]} 21.
Qh4+ {[%clk 00:30:53]} {[%emt 00:00:50]} Kg8 {[%clk 00:27:49]} {[%emt
00:00:06]} 22. Bg5 {[%clk 00:30:31]} {[%emt 00:00:32]} Re5 {[%clk 00:24:20]}
{[%emt 00:03:38]} 23. cxb4 {[%clk 00:29:22]} {[%emt 00:01:19]} Bxb4 {[%clk
00:23:58]} {[%emt 00:00:33]} 24. Na3 {[%clk 00:28:36]} {[%emt 00:00:56]} Bd5
{[%clk 00:22:04]} {[%emt 00:02:04]} 25. Nc2 {[%clk 00:27:23]} {[%emt 00:01:23]}
Bxa5 {[%clk 00:20:50]} {[%emt 00:01:24]} 26. Bf4 {[%clk 00:24:55]} {[%emt
00:02:36]} Ree8 {[%clk 00:19:56]} {[%emt 00:01:05]} 27. Ne3 {[%clk 00:24:33]}
{[%emt 00:00:32]} Be6 {[%clk 00:19:41]} {[%emt 00:00:25]} 28. Be5 {[%clk
00:22:52]} {[%emt 00:01:51]} Bb3 {[%clk 00:18:23]} {[%emt 00:01:29]} 29. Qg3
{[%clk 00:20:26]} {[%emt 00:02:35]} Be6 {[%clk 00:14:29]} {[%emt 00:04:04]} 30.
Rac1 {[%clk 00:19:54]} {[%emt 00:00:42]} Re7 {[%clk 00:14:19]} {[%emt
00:00:20]} 31. Rc6 {[%clk 00:18:33]} {[%emt 00:01:31]} Bb6 {[%clk 00:13:20]}
{[%emt 00:01:09]} 32. Bxf6 {[%clk 00:17:48]} {[%emt 00:00:55]} Qxf6 {[%clk
00:13:14]} {[%emt 00:00:17]} 33. Nd5 {[%clk 00:17:55]} {[%emt 00:00:02]} Bxf2+
{[%clk 00:12:22]} {[%emt 00:01:02]} 34. Rxf2 {[%clk 00:17:31]} {[%emt
00:00:35]} Qa1+ {[%clk 00:12:30]} {[%emt 00:00:01]} 35. Rf1 {[%clk 00:17:40]}
Qd4+ {[%clk 00:12:28]} {[%emt 00:00:13]} 36. Ne3 {[%clk 00:17:43]} {[%emt
00:00:06]} Qxa4 {[%clk 00:11:51]} {[%emt 00:00:48]} 37. Rxe6 {[%clk 00:16:58]}
{[%emt 00:00:54]} Rxe6 {[%clk 00:11:59]} {[%emt 00:00:02]} 38. Bc4 {[%clk
00:17:07]} Rae8 {[%clk 00:11:45]} {[%emt 00:00:23]} 39. Bxe6+ {[%clk 00:15:38]}
{[%emt 00:01:40]} Rxe6 {[%clk 00:11:55]} 40. Qxc7 {[%clk 00:15:41]} {[%emt
00:00:07]} Kh7 {[%clk 00:10:17]} {[%emt 00:01:47]} 41. Qf4 {[%clk 00:14:29]}
{[%emt 00:01:22]} Qd4 {[%clk 00:09:43]} {[%emt 00:00:45]} 42. Qf5+ {[%clk
00:12:41]} {[%emt 00:01:58]} Rg6 {[%clk 00:09:51]} 43. Re1 {[%clk 00:12:07]}
{[%emt 00:00:44]} Qc3 {[%clk 00:08:47]} {[%emt 00:01:15]} 44. Qh5+ {[%clk
00:11:29]} {[%emt 00:00:48]} Rh6 {[%clk 00:08:53]} {[%emt 00:00:03]} 45. Qe2
{[%clk 00:11:21]} {[%emt 00:00:18]} a5 {[%clk 00:08:05]} {[%emt 00:00:58]} 46.
Kh1 {[%clk 00:10:36]} {[%emt 00:00:55]} Re6 {[%clk 00:07:31]} {[%emt 00:00:44]}
47. Rd1 {[%clk 00:09:24]} {[%emt 00:01:22]} Re5 {[%clk 00:03:57]} {[%emt
00:03:44]} 48. Nc4 {[%clk 00:08:56]} {[%emt 00:00:37]} Rg5 {[%clk 00:02:02]}
{[%emt 00:02:06]} 49. Qxe4+ {[%clk 00:08:56]} {[%emt 00:00:10]} g6 {[%clk
00:01:59]} {[%emt 00:00:13]} 50. Qh4+ {[%clk 00:08:42]} {[%emt 00:00:24]} Rh5
{[%clk 00:02:08]} 51. Rd7+ {[%clk 00:08:31]} {[%emt 00:00:21]} Kh6 {[%clk
00:02:16]} {[%emt 00:00:01]} 52. Qf4+ {[%clk 00:08:36]} {[%emt 00:00:06]} Rg5
{[%clk 00:02:19]} {[%emt 00:00:07]} 53. h4 {[%clk 00:08:01]} {[%emt 00:00:46]}
Qe1+ {[%clk 00:01:28]} {[%emt 00:01:01]} 54. Kh2 {[%clk 00:08:09]} {[%emt
00:00:01]} 1-0

[Event "FIDE U16 Olympiad_boards_1-80"]
[Site "Eindhoven, Netherlands"]
[Date "2023.08.14"]
[Round "3.66"]
[White "Colev, Ivor"]
[Black "He, Matthew"]
[Result "1-0"]
[TimeControl "2700+10"]
[WhiteElo "1895"]
[BlackElo "1839"]

1. e4 {[%clk 00:45:17]} {[%emt 00:00:03]} c6 {[%clk 00:45:18]} {[%emt
00:00:02]} 2. Nc3 {[%clk 00:45:26]} {[%emt 00:00:02]} d5 {[%clk 00:45:02]}
{[%emt 00:00:27]} 3. Nf3 {[%clk 00:45:34]} {[%emt 00:00:01]} dxe4 {[%clk
00:44:23]} {[%emt 00:00:49]} 4. Nxe4 {[%clk 00:45:43]} {[%emt 00:00:02]} Nf6
{[%clk 00:44:31]} {[%emt 00:00:02]} 5. Qe2 {[%clk 00:45:07]} {[%emt 00:00:44]}
Nxe4 {[%clk 00:44:38]} {[%emt 00:00:04]} 6. Qxe4 {[%clk 00:45:15]} {[%emt
00:00:02]} Nd7 {[%clk 00:44:47]} {[%emt 00:00:02]} 7. Bc4 {[%clk 00:44:46]}
{[%emt 00:00:38]} Nf6 {[%clk 00:44:45]} {[%emt 00:00:12]} 8. Qe2 {[%clk
00:42:17]} {[%emt 00:02:39]} Bf5 {[%clk 00:43:39]} {[%emt 00:01:16]} 9. Ne5
{[%clk 00:39:55]} {[%emt 00:02:32]} e6 {[%clk 00:43:19]} {[%emt 00:00:30]} 10.
d3 {[%clk 00:36:42]} {[%emt 00:03:22]} Bd6 {[%clk 00:41:50]} {[%emt 00:01:40]}
11. Bd2 {[%clk 00:34:38]} {[%emt 00:02:13]} Qc7 {[%clk 00:41:27]} {[%emt
00:00:33]} 12. Nf3 {[%clk 00:28:40]} {[%emt 00:06:09]} b5 {[%clk 00:41:23]}
{[%emt 00:00:15]} 13. Bb3 {[%clk 00:28:11]} {[%emt 00:00:38]} O-O {[%clk
00:39:21]} {[%emt 00:02:11]} 14. h3 {[%clk 00:27:29]} {[%emt 00:00:53]} a5
{[%clk 00:38:22]} {[%emt 00:01:10]} 15. a4 {[%clk 00:27:31]} {[%emt 00:00:07]}
e5 {[%clk 00:31:40]} {[%emt 00:06:52]} 16. g4 {[%clk 00:21:08]} {[%emt
00:06:33]} Bg6 {[%clk 00:29:35]} {[%emt 00:02:15]} 17. Nh4 {[%clk 00:19:05]}
{[%emt 00:02:12]} e4 {[%clk 00:28:00]} {[%emt 00:01:46]} 18. d4 {[%clk
00:16:11]} {[%emt 00:03:04]} Qb6 {[%clk 00:24:53]} {[%emt 00:03:17]} 19. Nxg6
{[%clk 00:13:29]} {[%emt 00:02:52]} hxg6 {[%clk 00:24:51]} {[%emt 00:00:12]} 20.
Be3 {[%clk 00:13:29]} {[%emt 00:00:10]} bxa4 {[%clk 00:23:59]} {[%emt
00:01:01]} 21. Rxa4 {[%clk 00:13:20]} {[%emt 00:00:19]} Bb4+ {[%clk 00:23:25]}
{[%emt 00:00:45]} 22. Kf1 {[%clk 00:12:41]} {[%emt 00:00:49]} Qb5 {[%clk
00:20:16]} {[%emt 00:03:19]} 23. c4 {[%clk 00:12:49]} {[%emt 00:00:01]} Qb6
{[%clk 00:19:02]} {[%emt 00:01:25]} 24. Bc2 {[%clk 00:12:48]} {[%emt 00:00:10]}
Rfe8 {[%clk 00:18:31]} {[%emt 00:00:42]} 25. h4 {[%clk 00:11:32]} {[%emt
00:01:26]} c5 {[%clk 00:17:52]} {[%emt 00:00:49]} 26. d5 {[%clk 00:11:14]}
{[%emt 00:00:28]} Qd6 {[%clk 00:16:53]} {[%emt 00:01:09]} 27. Bd1 {[%clk
00:05:07]} {[%emt 00:06:16]} Qe5 {[%clk 00:12:44]} {[%emt 00:04:19]} 28. Kg2
{[%clk 00:04:48]} {[%emt 00:00:30]} Nd7 {[%clk 00:12:13]} {[%emt 00:00:40]} 29.
Ra1 {[%clk 00:01:57]} {[%emt 00:03:01]} f5 {[%clk 00:11:47]} {[%emt 00:00:37]}
30. gxf5 {[%clk 00:02:00]} {[%emt 00:00:06]} gxf5 {[%clk 00:10:40]} {[%emt
00:01:18]} 31. Ba4 {[%clk 00:01:35]} {[%emt 00:00:34]} Ra7 {[%clk 00:06:09]}
{[%emt 00:04:41]} 32. Qh5 {[%clk 00:00:25]} {[%emt 00:01:20]} Nf6 {[%clk
00:04:32]} {[%emt 00:01:47]} 33. Qg5 {[%clk 00:00:35]} Rf8 {[%clk 00:02:29]}
{[%emt 00:02:13]} 34. h5 {[%clk 00:00:24]} {[%emt 00:00:21]} Ng4 {[%clk
00:01:58]} {[%emt 00:00:41]} 35. Rag1 {[%clk 00:00:20]} {[%emt 00:00:14]} Nxe3+
{[%clk 00:00:55]} {[%emt 00:01:12]} 36. fxe3 {[%clk 00:00:29]} {[%emt
00:00:02]} Qxb2+ {[%clk 00:00:55]} {[%emt 00:00:09]} 37. Kh3 {[%clk 00:00:34]}
{[%emt 00:00:06]} Qf6 {[%clk 00:00:26]} {[%emt 00:00:39]} 38. Qf4 {[%clk
00:00:26]} {[%emt 00:00:18]} Kh7 {[%clk 00:00:15]} {[%emt 00:00:20]} 39. Rg6
{[%clk 00:00:33]} {[%emt 00:00:04]} Qc3 {[%clk 00:00:15]} {[%emt 00:00:10]} 40.
Rhg1 {[%clk 00:00:30]} {[%emt 00:00:13]} Rf6 {[%clk 00:00:16]} {[%emt
00:00:09]} 41. Qg5 {[%clk 00:00:20]} {[%emt 00:00:19]} Rff7 {[%clk 00:00:11]}
{[%emt 00:00:16]} 42. h6 {[%clk 00:00:24]} {[%emt 00:00:06]} gxh6 {[%clk
00:00:12]} {[%emt 00:00:08]} 43. Rxh6# {[%clk 00:00:33]} {[%emt 00:00:02]} 1-0

[Event "FIDE U16 Olympiad_boards_1-80"]
[Site "Eindhoven, Netherlands"]
[Date "2023.08.14"]
[Round "3.67"]
[White "Su, Ethan"]
[Black "Sundac, Ivano"]
[Result "1/2-1/2"]
[TimeControl "2700+10"]
[WhiteElo "1778"]
[BlackElo "1877"]

1. d4 {[%clk 00:45:18]} {[%emt 00:00:02]} Nf6 {[%clk 00:45:16]} {[%emt
00:00:01]} 2. c4 {[%clk 00:45:25]} {[%emt 00:00:05]} e6 {[%clk 00:45:24]}
{[%emt 00:00:02]} 3. g3 {[%clk 00:45:32]} {[%emt 00:00:02]} d5 {[%clk
00:45:32]} {[%emt 00:00:02]} 4. Bg2 {[%clk 00:45:41]} {[%emt 00:00:02]} Be7
{[%clk 00:45:41]} {[%emt 00:00:02]} 5. Nf3 {[%clk 00:45:48]} {[%emt 00:00:02]}
O-O {[%clk 00:45:49]} {[%emt 00:00:02]} 6. Nc3 {[%clk 00:45:52]} {[%emt
00:00:06]} dxc4 {[%clk 00:44:56]} {[%emt 00:01:04]} 7. Ne5 {[%clk 00:46:00]}
{[%emt 00:00:02]} Nc6 {[%clk 00:44:37]} {[%emt 00:00:28]} 8. Bxc6 {[%clk
00:46:07]} {[%emt 00:00:03]} bxc6 {[%clk 00:44:46]} {[%emt 00:00:02]} 9. Nxc6
{[%clk 00:46:16]} {[%emt 00:00:01]} Qe8 {[%clk 00:44:55]} {[%emt 00:00:01]} 10.
Nxe7+ {[%clk 00:46:11]} {[%emt 00:00:15]} Qxe7 {[%clk 00:45:03]} 11. Qa4 {[%clk
00:46:19]} {[%emt 00:00:03]} Bb7 {[%clk 00:44:03]} {[%emt 00:01:09]} 12. f3
{[%clk 00:44:34]} {[%emt 00:01:55]} e5 {[%clk 00:42:02]} {[%emt 00:02:11]} 13.
dxe5 {[%clk 00:39:02]} {[%emt 00:05:42]} Nd7 {[%clk 00:40:11]} {[%emt
00:02:01]} 14. Bf4 {[%clk 00:30:09]} {[%emt 00:09:03]} Rfd8 {[%clk 00:34:49]}
{[%emt 00:05:31]} 15. O-O {[%clk 00:28:23]} {[%emt 00:01:58]} g5 {[%clk
00:30:43]} {[%emt 00:04:15]} 16. Be3 {[%clk 00:21:02]} {[%emt 00:07:31]} Nxe5
{[%clk 00:27:49]} {[%emt 00:03:05]} 17. Bf2 {[%clk 00:19:39]} {[%emt 00:01:33]}
Qf6 {[%clk 00:24:39]} {[%emt 00:03:17]} 18. Be3 {[%clk 00:16:17]} {[%emt
00:03:33]} Qe7 {[%clk 00:17:46]} {[%emt 00:07:04]} 19. Nd1 {[%clk 00:09:07]}
{[%emt 00:07:20]} g4 {[%clk 00:14:30]} {[%emt 00:03:26]} 20. f4 {[%clk
00:02:15]} {[%emt 00:07:02]} Ng6 {[%clk 00:11:48]} {[%emt 00:02:53]} 21. Qxc4
{[%clk 00:01:36]} {[%emt 00:00:49]} Bd5 {[%clk 00:09:50]} {[%emt 00:02:07]} 22.
Qc2 {[%clk 00:01:15]} {[%emt 00:00:33]} h5 {[%clk 00:06:32]} {[%emt 00:03:27]}
23. Bc5 {[%clk 00:01:15]} {[%emt 00:00:10]} Qe8 {[%clk 00:06:14]} {[%emt
00:00:28]} 24. Nc3 {[%emt 00:00:34]} Bb7 {[%clk 00:04:56]} {[%emt 00:01:26]} 25.
e4 {[%clk 00:00:53]} {[%emt 00:00:10]} Qc6 {[%clk 00:05:00]} {[%emt 00:00:06]}
26. b4 {[%clk 00:00:38]} {[%emt 00:00:25]} h4 {[%clk 00:03:02]} {[%emt
00:02:08]} 27. Rad1 {[%clk 00:00:36]} {[%emt 00:00:12]} Qe8 {[%clk 00:01:48]}
{[%emt 00:01:23]} 28. Nd5 {[%clk 00:00:24]} {[%emt 00:00:23]} Bxd5 {[%clk
00:01:56]} {[%emt 00:00:02]} 29. exd5 {[%clk 00:00:32]} {[%emt 00:00:01]} h3
{[%clk 00:01:36]} {[%emt 00:00:31]} 30. Rfe1 {[%clk 00:00:38]} {[%emt
00:00:05]} Qb5 {[%clk 00:01:40]} {[%emt 00:00:06]} 31. Qd3 {[%clk 00:00:31]}
{[%emt 00:00:17]} Qa4 {[%clk 00:01:38]} {[%emt 00:00:11]} 32. a3 {[%clk
00:00:39]} {[%emt 00:00:02]} Re8 {[%clk 00:01:38]} {[%emt 00:00:11]} 33. Bd4
{[%clk 00:00:22]} {[%emt 00:00:26]} a5 {[%clk 00:01:35]} {[%emt 00:00:13]} 34.
Bb2 {[%clk 00:00:20]} {[%emt 00:00:11]} Rxe1+ {[%clk 00:01:28]} {[%emt
00:00:18]} 35. Rxe1 {[%clk 00:00:30]} Re8 {[%clk 00:01:37]} 36. Rxe8+ {[%clk
00:00:31]} {[%emt 00:00:09]} Qxe8 {[%clk 00:01:46]} {[%emt 00:00:01]} 37. Kf2
{[%clk 00:00:40]} axb4 {[%clk 00:01:16]} {[%emt 00:00:40]} 38. axb4 {[%clk
00:00:49]} {[%emt 00:00:01]} Qe7 {[%clk 00:01:22]} {[%emt 00:00:03]} 39. Qd4
{[%clk 00:00:52]} {[%emt 00:00:08]} f5 {[%clk 00:01:31]} {[%emt 00:00:01]} 40.
Bc3 {[%clk 00:00:41]} {[%emt 00:00:21]} Kf8 {[%clk 00:01:13]} {[%emt 00:00:28]}
41. Qf6+ {[%clk 00:00:19]} {[%emt 00:00:32]} Qxf6 {[%clk 00:01:22]} {[%emt
00:00:01]} 42. Bxf6 {[%clk 00:00:28]} {[%emt 00:00:01]} Ke8 {[%clk 00:01:32]}
{[%emt 00:00:01]} 43. Ke3 {[%clk 00:00:34]} {[%emt 00:00:03]} Kd7 {[%clk
00:01:41]} 44. Kd4 {[%clk 00:00:39]} {[%emt 00:00:04]} Nxf4 {[%clk 00:01:09]}
{[%emt 00:00:42]} 45. Ke5 {[%clk 00:00:21]} {[%emt 00:00:29]} Nd3+ {[%clk
00:01:03]} {[%emt 00:00:16]} 46. Kxf5 {[%clk 00:00:28]} {[%emt 00:00:02]} Nxb4
{[%clk 00:01:13]} {[%emt 00:00:01]} 47. Kxg4 {[%clk 00:00:31]} {[%emt
00:00:08]} Nxd5 {[%clk 00:01:21]} 48. Bd4 {[%clk 00:00:38]} {[%emt 00:00:03]}
Ke6 {[%clk 00:01:27]} {[%emt 00:00:04]} 49. Kxh3 {[%clk 00:00:46]} {[%emt
00:00:01]} Kf5 {[%clk 00:01:35]} {[%emt 00:00:03]} 50. Bc5 {[%clk 00:00:49]}
{[%emt 00:00:07]} Nf6 {[%clk 00:01:42]} {[%emt 00:00:02]} 51. Kg2 {[%clk
00:00:52]} {[%emt 00:00:08]} c6 {[%clk 00:01:49]} {[%emt 00:00:03]} 52. h3
{[%clk 00:01:00]} {[%emt 00:00:02]} Nd7 {[%clk 00:01:44]} {[%emt 00:00:14]} 53.
Ba3 {[%clk 00:01:04]} {[%emt 00:00:07]} c5 {[%clk 00:01:53]} 54. g4+ {[%clk
00:01:08]} {[%emt 00:00:06]} Kg5 {[%clk 00:01:56]} {[%emt 00:00:07]} 55. Kg3
{[%clk 00:01:14]} {[%emt 00:00:03]} Nf6 {[%clk 00:01:47]} {[%emt 00:00:19]} 56.
h4+ {[%clk 00:01:21]} {[%emt 00:00:04]} Kg6 {[%clk 00:01:56]} {[%emt 00:00:01]}
57. h5+ {[%clk 00:01:16]} {[%emt 00:00:14]} Nxh5+ {[%clk 00:02:05]} {[%emt
00:00:02]} 58. gxh5+ {[%clk 00:01:24]} {[%emt 00:00:02]} Kxh5 {[%clk 00:02:14]}
59. Bxc5 {[%clk 00:01:16]} {[%emt 00:00:02]} 1/2-1/2

[Event "FIDE U16 Olympiad_boards_1-80"]
[Site "Eindhoven, Netherlands"]
[Date "2023.08.14"]
[Round "3.68"]
[White "Begic, Klara"]
[Black "Mok, Gillian Xi-Lin"]
[Result "1-0"]
[TimeControl "2700+10"]
[WhiteElo "1812"]
[BlackElo "1314"]

1. d4 {[%clk 00:45:18]} {[%emt 00:00:02]} Nf6 {[%clk 00:45:17]} {[%emt
00:00:04]} 2. Nf3 {[%clk 00:45:26]} {[%emt 00:00:02]} g6 {[%clk 00:45:25]}
{[%emt 00:00:02]} 3. g3 {[%clk 00:45:34]} {[%emt 00:00:02]} Bg7 {[%clk
00:45:34]} {[%emt 00:00:01]} 4. Bg2 {[%clk 00:45:43]} {[%emt 00:00:01]} d5
{[%clk 00:45:30]} {[%emt 00:00:14]} 5. O-O {[%clk 00:44:52]} {[%emt 00:01:01]}
O-O {[%clk 00:45:37]} {[%emt 00:00:03]} 6. b3 {[%clk 00:44:18]} {[%emt
00:00:44]} Bd7 {[%clk 00:44:26]} {[%emt 00:01:20]} 7. Bb2 {[%clk 00:43:53]}
{[%emt 00:00:36]} c6 {[%clk 00:43:29]} {[%emt 00:01:08]} 8. Nbd2 {[%clk
00:43:59]} {[%emt 00:00:04]} Qc8 {[%clk 00:43:31]} {[%emt 00:00:07]} 9. Re1
{[%clk 00:43:59]} {[%emt 00:00:10]} Bh3 {[%clk 00:42:17]} {[%emt 00:01:24]} 10.
Bh1 {[%clk 00:44:06]} {[%emt 00:00:02]} h6 {[%clk 00:41:52]} {[%emt 00:00:36]}
11. c4 {[%clk 00:42:59]} {[%emt 00:01:17]} Qf5 {[%clk 00:39:24]} {[%emt
00:02:37]} 12. Nh4 {[%clk 00:40:44]} {[%emt 00:02:27]} Qd7 {[%clk 00:39:27]}
{[%emt 00:00:05]} 13. Nhf3 {[%clk 00:35:56]} {[%emt 00:04:59]} g5 {[%clk
00:36:04]} {[%emt 00:03:34]} 14. Ne5 {[%clk 00:35:15]} {[%emt 00:00:50]} Qf5
{[%clk 00:35:46]} {[%emt 00:00:27]} 15. cxd5 {[%clk 00:33:52]} {[%emt
00:01:34]} cxd5 {[%clk 00:35:47]} {[%emt 00:00:09]} 16. e4 {[%clk 00:33:32]}
{[%emt 00:00:30]} dxe4 {[%clk 00:35:09]} {[%emt 00:00:48]} 17. Nxe4 {[%clk
00:33:16]} {[%emt 00:00:26]} Nc6 {[%clk 00:34:16]} {[%emt 00:01:03]} 18. Nxf6+
{[%clk 00:26:34]} {[%emt 00:06:52]} Bxf6 {[%clk 00:32:07]} {[%emt 00:02:19]} 19.
Nxc6 {[%clk 00:26:14]} {[%emt 00:00:30]} bxc6 {[%clk 00:32:10]} {[%emt
00:00:07]} 20. Bxc6 {[%clk 00:26:20]} {[%emt 00:00:05]} Rac8 {[%clk 00:32:10]}
{[%emt 00:00:09]} 21. Be4 {[%clk 00:26:13]} {[%emt 00:00:17]} Qd7 {[%clk
00:31:03]} {[%emt 00:01:15]} 22. Qd2 {[%clk 00:24:16]} {[%emt 00:02:08]} Bg7
{[%clk 00:28:51]} {[%emt 00:02:22]} 23. Rac1 {[%clk 00:17:43]} {[%emt
00:06:44]} f5 {[%clk 00:26:34]} {[%emt 00:02:27]} 24. Rxc8 {[%clk 00:16:57]}
{[%emt 00:00:56]} Rxc8 {[%clk 00:26:21]} {[%emt 00:00:22]} 25. Bh1 {[%clk
00:15:06]} {[%emt 00:02:02]} Rd8 {[%clk 00:22:51]} {[%emt 00:03:40]} 26. d5
{[%clk 00:13:21]} {[%emt 00:01:55]} Bxb2 {[%clk 00:20:21]} {[%emt 00:02:40]} 27.
Qxb2 {[%clk 00:13:28]} {[%emt 00:00:03]} Kf7 {[%clk 00:18:37]} {[%emt
00:01:54]} 28. Re6 {[%clk 00:11:37]} {[%emt 00:02:01]} Qb5 {[%clk 00:17:47]}
{[%emt 00:00:57]} 29. Re1 {[%clk 00:11:06]} {[%emt 00:00:43]} Qd7 {[%clk
00:14:23]} {[%emt 00:03:35]} 30. Qe5 {[%clk 00:10:57]} {[%emt 00:00:19]} Qd6
{[%clk 00:14:14]} {[%emt 00:00:18]} 31. Qe2 {[%clk 00:10:20]} {[%emt 00:00:48]}
Bg4 {[%clk 00:13:48]} {[%emt 00:00:37]} 32. Qc4 {[%clk 00:10:21]} {[%emt
00:00:08]} Qd7 {[%clk 00:11:34]} {[%emt 00:02:24]} 33. d6+ {[%clk 00:07:34]}
{[%emt 00:02:56]} e6 {[%clk 00:11:42]} {[%emt 00:00:03]} 34. Qc7 {[%clk
00:03:01]} {[%emt 00:04:43]} Bh5 {[%clk 00:07:56]} {[%emt 00:03:56]} 35. Rc1
{[%clk 00:02:51]} {[%emt 00:00:19]} Ke8 {[%clk 00:06:53]} {[%emt 00:01:14]} 36.
Bc6 {[%clk 00:02:59]} {[%emt 00:00:02]} Bf3 {[%clk 00:06:06]} {[%emt 00:00:58]}
37. Bxd7+ {[%clk 00:02:59]} {[%emt 00:00:08]} Rxd7 {[%clk 00:06:14]} {[%emt
00:00:03]} 38. Qc8+ {[%clk 00:03:01]} {[%emt 00:00:08]} Rd8 {[%clk 00:06:22]}
{[%emt 00:00:02]} 39. Qxe6+ {[%clk 00:03:00]} {[%emt 00:00:10]} Kf8 {[%clk
00:06:29]} {[%emt 00:00:04]} 40. Rc7 {[%clk 00:02:54]} {[%emt 00:00:16]} Rd7
{[%clk 00:06:32]} {[%emt 00:00:07]} 41. Qxd7 {[%clk 00:02:54]} {[%emt
00:00:10]} Bh5 {[%clk 00:06:37]} {[%emt 00:00:05]} 42. Qe7+ {[%clk 00:03:01]}
{[%emt 00:00:04]} Kg8 {[%clk 00:06:45]} {[%emt 00:00:02]} 43. Qg7# {[%clk
00:03:09]} {[%emt 00:00:02]} 1-0